bitfinex/quotes_BTCUSD_20241002
["timestamp","ask_amount","ask_price","bid_price","bid_amount"]
[1727877187374,0.000819,61339.0,61338.0,0.163031]
[1727877187602,0.000819,61339.0,61335.0,0.163038]
[1727877187833,0.000819,61339.0,61336.0,0.20212639]
[1727877188067,0.000819,61339.0,61336.0,0.20212539]
[1727877188297,0.000819,61339.0,61336.0,0.03909139]
[1727877188534,0.000819,61339.0,61338.0,0.004]
[1727877188760,0.163849,61339.0,61338.0,0.004]
[1727877189072,0.000819,61339.0,61338.0,0.004]
[1727877189987,0.000819,61339.0,61338.0,0.2000385]
[1727877190220,0.000819,61339.0,61338.0,0.1960385]
[1727877190450,0.001819,61339.0,61338.0,0.1960385]
[1727877190911,0.000819,61339.0,61338.0,0.0330075]
[1727877191138,0.000819,61339.0,61338.0,0.1960385]
[1727877191368,0.000819,61339.0,61338.0,0.2060385]
[1727877191604,0.000819,61339.0,61338.0,0.0430075]
[1727877191846,0.000819,61339.0,61338.0,0.173031]
[1727877192081,0.000819,61339.0,61338.0,0.163031]
[1727877192538,0.000819,61339.0,61338.0,0.170031]
[1727877194270,0.000819,61339.0,61338.0,0.60514761]
[1727877194497,0.000819,61339.0,61338.0,0.80414761]
[1727877194735,0.001819,61339.0,61338.0,0.96376636]
[1727877194974,0.001819,61339.0,61338.0,1.12895307]
[1727877195216,0.000819,61341.0,61340.0,0.195725]
[1727877195447,0.000819,61341.0,61340.0,0.44527106]
[1727877196401,0.000819,61341.0,61340.0,0.08635935]
[1727877196679,0.000819,61341.0,61338.0,0.012]
[1727877196921,0.163028,61339.0,61338.0,0.012]
[1727877197438,0.286028,61339.0,61338.0,0.012]
[1727877197907,0.163036,61336.0,61330.0,0.163052]
[1727877198137,0.163036,61336.0,61327.0,0.24450874]
[1727877198138,0.326868,61341.0,61334.0,0.24450874]
[1727877198390,0.513891,61341.0,61340.0,0.012]
[1727877198881,0.513891,61341.0,61329.0,0.24450874]
[1727877198882,0.023,61340.0,61329.0,0.24450874]
[1727877199121,0.293028,61339.0,61338.0,0.001]
[1727877199348,0.619085,61339.0,61338.0,0.001]
[1727877199580,0.163049,61331.0,61330.0,0.02445087]
[1727877199824,0.023,61336.0,61331.0,0.18994396]
[1727877200071,0.163038,61336.0,61331.0,0.02689596]
[1727877200320,0.163042,61334.0,61327.0,0.163058]
[1727877200555,0.008819,61341.0,61331.0,0.24450874]
[1727877200794,0.008819,61341.0,61323.0,0.358836]
[1727877200795,0.326051,61340.0,61332.0,0.02445087]
[1727877201028,0.326068,61337.0,61332.0,0.02445087]
[1727877201263,0.02556624,61352.0,61339.0,0.24450874]
[1727877201502,0.24450874,61366.0,61333.0,0.28405069]
[1727877201503,0.24450874,61359.0,61356.0,0.162981]
[1727877201767,0.000819,61372.0,61359.0,0.162973]
[1727877201768,4.9e-07,61362.0,61359.0,0.162973]
[1727877202003,4.9e-07,61362.0,61352.0,0.44211661]
[1727877202240,4.9e-07,61362.0,61357.0,0.40748874]
[1727877202460,4.9e-07,61362.0,61352.0,0.76810061]
[1727877202687,4.9e-07,61362.0,61357.0,0.162978]
[1727877202917,4.9e-07,61362.0,61357.0,0.325959]
[1727877203151,4.9e-07,61362.0,61357.0,0.162979]
[1727877203390,4.9e-07,61362.0,61355.0,0.24450874]
[1727877203616,4.9e-07,61362.0,61356.0,0.0539302]
[1727877203845,0.185954,61367.0,61356.0,0.0539302]
[1727877204592,0.185955,61367.0,61356.0,0.0539302]
[1727877204835,0.162977,61358.0,61357.0,0.001]
[1727877205298,0.162977,61358.0,61355.0,0.24450874]
[1727877205530,0.162977,61358.0,61356.0,0.001]
[1727877205778,0.1813,61365.0,61356.0,0.001]
[1727877206031,0.007,61367.0,61364.0,0.24450874]
[1727877206271,0.007,61367.0,61357.0,0.26905961]
[1727877206272,0.007,61367.0,61361.0,0.325939]
[1727877206502,0.325839,61380.0,61368.0,0.162951]
[1727877206739,0.325823,61383.0,61359.0,0.44211661]
[1727877206740,0.15457425,61378.0,61369.0,0.0162951]
[1727877206986,0.000818,61382.0,61365.0,0.24450874]
[1727877207259,0.000818,61382.0,61374.0,0.24450874]
[1727877207503,0.000818,61382.0,61366.0,0.24450874]
[1727877207766,0.000818,61382.0,61367.0,0.325906]
[1727877208004,0.000818,61382.0,61373.0,0.40744674]
[1727877208254,0.000818,61382.0,61368.0,0.325901]
[1727877208495,0.000818,61382.0,61373.0,0.24450874]
[1727877208953,0.16292,61380.0,61373.0,0.24450874]
[1727877209183,0.1,61379.0,61373.0,0.24450874]
[1727877209687,0.1,61379.0,61373.0,0.40744474]
[1727877209913,0.1,61379.0,61374.0,0.08378574]
[1727877210156,0.001818,61382.0,61374.0,0.08378574]
[1727877210401,0.001818,61382.0,61374.0,0.00125096]
[1727877210661,0.001818,61382.0,61373.0,0.24550874]
[1727877210662,0.001818,61382.0,61376.0,0.325857]
[1727877210894,0.00088022,61382.0,61377.0,0.32585]
[1727877211147,0.00088022,61382.0,61378.0,0.38298187]
[1727877211384,0.000818,61387.0,61378.0,0.05713587]
[1727877211625,0.162891,61391.0,61379.0,0.16292]
[1727877211855,0.1,61390.0,61380.0,0.08185595]
[1727877212088,0.1,61390.0,61378.0,0.05713587]
[1727877212357,0.1,61390.0,61376.0,0.24450874]
[1727877212586,0.325795,61389.0,61376.0,0.24450874]
[1727877212821,0.76787861,61395.0,61376.0,0.24450874]
[1727877212822,0.162907,61385.0,61376.0,0.24450874]
[1727877213050,0.325814,61385.0,61377.0,0.04074447]
[1727877213291,0.16292,61380.0,61377.0,0.04074447]
[1727877213526,0.162921,61380.0,61378.0,0.24450874]
[1727877213761,0.162921,61380.0,61366.0,1.01253635]
[1727877213762,0.32584,61380.0,61366.0,1.01253635]
[1727877214005,0.32584,61380.0,61374.0,0.24450874]
[1727877214233,0.002,61387.0,61367.0,0.26420643]
[1727877214460,0.325824,61383.0,61368.0,0.16318671]
[1727877214733,0.325824,61383.0,61373.0,0.24450874]
[1727877214734,0.162928,61377.0,61373.0,0.24450874]
[1727877214981,0.488767,61379.0,61376.0,0.001]
[1727877215244,0.005,61389.0,61377.0,0.02455087]
[1727877215478,0.1,61392.0,61377.0,0.02455087]
[1727877215741,0.004,61383.0,61377.0,0.02455087]
[1727877216270,0.162917,61381.0,61377.0,0.02455087]
[1727877216504,0.16291,61384.0,61378.0,0.02690596]
[1727877216730,0.325799,61388.0,61378.0,0.18982996]
[1727877216731,0.325801,61388.0,61378.0,0.18982996]
[1727877216957,0.004,61389.0,61378.0,0.02690596]
[1727877217202,0.004,61389.0,61382.0,0.24450874]
[1727877217443,0.004,61389.0,61385.0,0.162905]
[1727877217695,0.004,61389.0,61387.0,0.1629]
[1727877217925,0.004,61389.0,61381.0,0.44211661]
[1727877218154,0.004,61389.0,61382.0,0.24450874]
[1727877218377,0.162889,61392.0,61383.0,0.20580874]
[1727877218607,0.162898,61389.0,61383.0,0.04289874]
[1727877218866,0.162893,61390.0,61384.0,0.03980801]
[1727877219085,0.162889,61392.0,61384.0,0.20271501]
[1727877219313,0.32576,61395.0,61385.0,0.27028992]
[1727877219552,0.001018,61399.0,61387.0,0.47481661]
[1727877219826,0.001018,61399.0,61388.0,0.00325759]
[1727877220061,0.162889,61392.0,61387.0,0.0327]
[1727877220300,0.162895,61389.0,61388.0,0.11923403]
[1727877220527,0.001018,61399.0,61385.0,0.10738592]
[1727877220766,0.325776,61392.0,61384.0,0.24450874]
[1727877221027,0.001018,61399.0,61384.0,0.24450874]
[1727877221028,0.32576,61395.0,61384.0,0.24450874]
[1727877221272,0.001018,61399.0,61385.0,0.08961547]
[1727877221505,0.163695,61396.0,61391.0,0.24450874]
[1727877221734,0.16288,61395.0,61389.0,0.162895]
[1727877221975,0.326573,61396.0,61385.0,0.0327]
[1727877222199,0.326573,61396.0,61386.0,0.02772087]
[1727877222200,0.32577,61393.0,61386.0,0.02772087]
[1727877222430,0.000818,61396.0,61386.0,0.02772087]
[1727877222431,0.1629,61387.0,61386.0,0.02772087]
[1727877222691,0.325772,61393.0,61387.0,0.02732296]
[1727877222923,0.162891,61391.0,61387.0,0.02732296]
[1727877223149,0.000818,61396.0,61387.0,0.02732296]
[1727877223387,0.162898,61388.0,61387.0,0.02732296]
[1727877223624,0.000818,61396.0,61387.0,0.02732296]
[1727877224086,0.000818,61396.0,61388.0,0.0190228]
[1727877224087,0.162888,61392.0,61388.0,0.0190228]
[1727877224318,0.162895,61390.0,61387.0,0.02732296]
[1727877225026,0.000818,61396.0,61387.0,0.02732296]
[1727877225291,0.000818,61396.0,61390.0,0.24450874]
[1727877225518,0.326574,61396.0,61386.0,0.001]
[1727877225750,0.326574,61396.0,61383.0,0.24450874]
[1727877225751,0.16288,61395.0,61383.0,0.24450874]
[1727877225988,0.000818,61396.0,61384.0,0.07193253]
[1727877226251,0.000818,61396.0,61386.0,0.44211661]
[1727877226484,0.000818,61396.0,61387.0,0.004]
[1727877226727,0.000818,61396.0,61388.0,0.09254619]
[1727877226979,0.162895,61389.0,61388.0,0.09254619]
[1727877227204,0.162898,61388.0,61387.0,0.004]
[1727877227638,0.16007198,61388.0,61387.0,0.004]
[1727877228316,0.000818,61396.0,61378.0,0.001636]
[1727877228542,0.000818,61396.0,61385.0,0.24450874]
[1727877228543,0.325779,61392.0,61385.0,0.24450874]
[1727877228779,0.002818,61396.0,61385.0,0.24450874]
[1727877229014,0.002818,61396.0,61386.0,0.28826865]
[1727877229015,0.000818,61396.0,61386.0,0.28826865]
[1727877229251,0.000818,61396.0,61392.0,0.24450874]
[1727877229485,0.000818,61396.0,61391.0,0.36131054]
[1727877229722,0.000818,61403.0,61394.0,0.24450874]
[1727877229953,0.000818,61403.0,61401.0,0.28501054]
[1727877231604,0.000818,61403.0,61400.0,0.0327]
[1727877231834,0.162866,61400.0,61396.0,0.24450874]
[1727877232075,0.000818,61403.0,61396.0,0.24450874]
[1727877232292,0.000818,61403.0,61401.0,0.01]
[1727877233179,0.000818,61403.0,61402.0,0.162861]
[1727877233407,0.000818,61403.0,61402.0,0.27899856]
[1727877233858,0.000818,61403.0,61402.0,0.11613756]
[1727877234539,0.000818,61403.0,61399.0,0.0327]
[1727877234765,0.000818,61403.0,61394.0,0.43498466]
[1727877234766,0.163676,61403.0,61396.0,0.004]
[1727877234977,0.000818,61403.0,61399.0,0.24450874]
[1727877235255,0.000818,61403.0,61400.0,0.04113827]
[1727877235475,0.000818,61403.0,61395.0,0.325756]
[1727877235695,0.000818,61403.0,61402.0,0.007]
[1727877236576,0.000818,61403.0,61399.0,0.162868]
[1727877236802,0.000818,61403.0,61400.0,0.162865]
[1727877237246,0.000818,61403.0,61401.0,0.162862]
[1727877237498,0.000818,61403.0,61399.0,0.24450874]
[1727877237728,0.000818,61403.0,61402.0,0.162861]
[1727877238869,0.000818,61403.0,61400.0,0.07202558]
[1727877239097,0.000818,61403.0,61402.0,0.162861]
[1727877240179,0.000818,61403.0,61398.0,0.32574]
[1727877240614,0.000819,61409.0,61401.0,0.325727]
[1727877240619,0.000819,61409.0,61406.0,0.325698]
[1727877240846,0.000819,61409.0,61402.0,0.13309564]
[1727877241066,0.000819,61409.0,61400.0,0.43498466]
[1727877241288,0.000819,61409.0,61403.0,0.24450874]
[1727877241505,0.000819,61409.0,61401.0,0.325724]
[1727877241732,0.000819,61409.0,61404.0,0.162855]
[1727877241979,0.000819,61409.0,61404.0,0.325708]
[1727877242228,0.000819,61409.0,61402.0,0.07697087]
[1727877242446,0.000819,61409.0,61400.0,0.009]
[1727877242447,0.000819,61409.0,61404.0,0.24450874]
[1727877243130,0.000819,61409.0,61404.0,0.25550874]
[1727877243813,0.000819,61409.0,61407.0,0.162845]
[1727877244041,0.000819,61409.0,61404.0,0.011]
[1727877244276,0.163662,61409.0,61404.0,0.011]
[1727877244502,0.325696,61407.0,61404.0,0.0173865]
[1727877244728,0.000819,61409.0,61396.0,0.24450874]
[1727877244960,0.162853,61405.0,61404.0,0.009]
[1727877245210,0.162853,61405.0,61375.0,0.24450874]
[1727877245211,0.162898,61388.0,61375.0,0.24450874]
[1727877245675,0.262898,61388.0,61375.0,0.24450874]
[1727877246132,0.285898,61388.0,61375.0,0.24450874]
[1727877246362,0.162898,61388.0,61377.0,0.162926]
[1727877246584,0.325761,61395.0,61387.0,0.005636]
[1727877246844,0.002,61397.0,61387.0,0.005636]
[1727877247068,0.162898,61388.0,61387.0,0.005636]
[1727877247287,0.1766,61399.0,61387.0,0.005636]
[1727877247524,0.325768,61394.0,61387.0,0.005636]
[1727877247751,0.162898,61388.0,61387.0,0.001636]
[1727877247978,0.173898,61388.0,61387.0,0.002636]
[1727877248223,0.173898,61388.0,61387.0,0.02735047]
[1727877249122,0.162898,61388.0,61387.0,0.001636]
[1727877249331,0.162898,61388.0,61387.0,0.002636]
[1727877249553,0.162894,61390.0,61387.0,0.002636]
[1727877249788,0.009,61394.0,61388.0,0.04100537]
[1727877250008,0.162898,61388.0,61387.0,0.002636]
[1727877250969,0.162898,61388.0,61387.0,0.001636]
[1727877251442,0.02554388,61388.0,61387.0,0.001636]
[1727877251901,0.02554388,61388.0,61387.0,0.245836]
[1727877252131,0.000819,61409.0,61403.0,0.162858]
[1727877252132,0.163662,61409.0,61403.0,0.162858]
[1727877252354,0.163662,61409.0,61404.0,0.0814318]
[1727877252355,0.000819,61409.0,61404.0,0.0814318]
[1727877252598,0.000819,61409.0,61393.0,0.162883]
[1727877252815,0.000819,61409.0,61401.0,0.24450874]
[1727877253041,0.000819,61409.0,61391.0,0.358478]
[1727877253295,0.16287,61399.0,61398.0,0.24450874]
[1727877253547,0.16289,61391.0,61390.0,0.24450874]
[1727877254016,0.325776,61392.0,61387.0,0.008636]
[1727877254246,0.162898,61388.0,61387.0,0.008636]
[1727877254696,0.162898,61388.0,61387.0,0.001636]
[1727877254916,0.162898,61388.0,61387.0,0.02625047]
[1727877255877,0.162898,61388.0,61387.0,0.001636]
[1727877256101,0.286898,61388.0,61387.0,0.008636]
[1727877256552,0.285898,61388.0,61387.0,0.001636]
[1727877257249,0.57080985,61388.0,61387.0,0.001636]
[1727877257492,0.82780985,61388.0,61387.0,0.001636]
[1727877257717,0.82980985,61388.0,61387.0,0.001636]
[1727877257939,0.82880985,61388.0,61387.0,0.001636]
[1727877258160,0.543898,61388.0,61387.0,0.001636]
[1727877258393,0.542898,61388.0,61387.0,0.001636]
[1727877258616,0.285898,61388.0,61387.0,0.001636]
[1727877258841,0.173898,61388.0,61387.0,0.002636]
[1727877259311,0.173898,61388.0,61387.0,0.001636]
[1727877259312,0.57280985,61388.0,61387.0,0.001636]
[1727877259526,0.58180985,61388.0,61387.0,0.002636]
[1727877259999,0.274716,61388.0,61387.0,0.002636]
[1727877260457,0.174716,61388.0,61387.0,0.002636]
[1727877260970,0.163716,61388.0,61387.0,0.001636]
[1727877261458,0.270716,61388.0,61387.0,0.002636]
[1727877261965,0.263716,61388.0,61387.0,0.001636]
[1727877262222,0.270716,61388.0,61387.0,0.002636]
[1727877262479,0.58062785,61388.0,61387.0,0.002636]
[1727877262700,1.20104294,61388.0,61387.0,0.001636]
[1727877262914,1.05224485,61388.0,61387.0,0.002636]
[1727877263131,1.10093268,61388.0,61387.0,0.002636]
[1727877263645,0.12170229,61411.0,61402.0,0.005]
[1727877263876,0.0161113,61414.0,61403.0,0.471617]
[1727877264090,0.0161113,61414.0,61401.0,0.0807]
[1727877264324,0.0161113,61414.0,61408.0,0.162843]
[1727877264560,0.0161113,61414.0,61409.0,0.471617]
[1727877264794,0.0161113,61414.0,61413.0,0.162831]
[1727877265043,0.0161113,61414.0,61413.0,0.32601771]
[1727877265270,0.0161113,61414.0,61405.0,0.28491185]
[1727877265496,0.0231113,61414.0,61413.0,0.162831]
[1727877265957,0.0161113,61414.0,61413.0,0.162831]
[1727877266895,0.00021196,61414.0,61413.0,0.32601771]
[1727877267120,0.00021196,61414.0,61413.0,0.40361771]
[1727877267345,0.00121196,61414.0,61413.0,0.40361771]
[1727877268268,0.00121196,61414.0,61413.0,0.0776]
[1727877268743,0.00121196,61414.0,61411.0,0.162835]
[1727877269009,0.00021196,61414.0,61412.0,0.162834]
[1727877269234,0.00021196,61414.0,61413.0,0.00325632]
[1727877269455,0.00021196,61414.0,61413.0,0.162831]
[1727877269905,0.00021196,61414.0,61413.0,0.16547962]
[1727877270167,0.00021196,61414.0,61411.0,0.44774785]
[1727877270389,0.00021196,61414.0,61413.0,0.162831]
[1727877270829,0.00021196,61414.0,61413.0,0.1660869]
[1727877271050,0.00021196,61414.0,61413.0,0.176831]
[1727877271525,0.00021196,61414.0,61413.0,0.162831]
[1727877271744,0.00021196,61414.0,61413.0,0.195531]
[1727877271956,0.00021196,61414.0,61413.0,0.207531]
[1727877272437,0.00021196,61414.0,61413.0,0.162831]
[1727877272631,0.00021196,61414.0,61413.0,0.16570296]
[1727877272861,0.00021196,61414.0,61413.0,0.17970296]
[1727877273080,0.00021196,61414.0,61413.0,0.176831]
[1727877273301,0.00021196,61414.0,61413.0,0.34001771]
[1727877273543,0.00102996,61414.0,61413.0,0.34001771]
[1727877273774,0.00102996,61414.0,61413.0,0.37271771]
[1727877274016,0.00102996,61414.0,61413.0,0.37471771]
[1727877274670,0.0002,61419.0,61415.0,0.002]
[1727877274921,0.24424597,61426.0,61425.0,0.1955]
[1727877275368,0.000818,61427.0,61426.0,0.195497]
[1727877275596,0.000818,61427.0,61426.0,0.275397]
[1727877275818,0.000818,61427.0,61426.0,0.6197355]
[1727877276037,0.000818,61427.0,61426.0,0.56030885]
[1727877276704,0.00370557,61450.0,61434.0,0.195476]
[1727877276705,0.24424597,61435.0,61434.0,0.195476]
[1727877276922,0.22489264,61445.0,61444.0,0.162749]
[1727877277373,0.00370557,61450.0,61438.0,0.61044185]
[1727877277626,0.00370557,61450.0,61439.0,0.162761]
[1727877277849,0.00370557,61450.0,61437.0,0.325534]
[1727877277850,0.00370557,61450.0,61437.0,0.56977997]
[1727877278075,0.00370557,61450.0,61443.0,0.162751]
[1727877278298,0.00370557,61450.0,61437.0,0.24424597]
[1727877278518,0.00370557,61450.0,61446.0,0.162743]
[1727877278731,0.00370557,61450.0,61448.0,0.162738]
[1727877279024,0.00370557,61450.0,61437.0,0.24424597]
[1727877279025,0.00370557,61450.0,61438.0,0.28491185]
[1727877279258,0.00370557,61450.0,61449.0,0.162736]
[1727877279521,0.00370557,61450.0,61449.0,0.195436]
[1727877279761,0.000818,61452.0,61451.0,0.195431]
[1727877279998,0.000817,61454.0,61450.0,0.2743]
[1727877279999,0.000817,61454.0,61453.0,0.48033685]
[1727877280700,0.000817,61454.0,61453.0,0.31761185]
[1727877280917,0.000817,61454.0,61453.0,0.48033685]
[1727877281630,0.000817,61454.0,61453.0,0.64352356]
[1727877281858,0.000817,61454.0,61453.0,0.48033685]
[1727877282310,0.000817,61454.0,61453.0,0.49433685]
[1727877282533,0.000817,61454.0,61453.0,0.014]
[1727877283665,0.000817,61454.0,61448.0,0.28491185]
[1727877283903,0.000817,61454.0,61453.0,0.014]
[1727877284386,0.000817,61454.0,61430.0,0.005]
[1727877284387,0.162737,61449.0,61440.0,0.24424597]
[1727877284665,0.000817,61454.0,61447.0,0.24424597]
[1727877284907,0.24424597,61452.0,61445.0,0.28491185]
[1727877285144,0.000817,61454.0,61446.0,0.24424597]
[1727877285377,0.000817,61454.0,61443.0,0.31761185]
[1727877285609,0.000817,61454.0,61436.0,0.24424597]
[1727877285610,0.000817,61454.0,61449.0,0.28491185]
[1727877286058,0.000817,61454.0,61451.0,0.162728]
[1727877286287,0.000817,61454.0,61449.0,0.64308185]
[1727877286508,0.000817,61454.0,61451.0,0.16273]
[1727877287020,0.002817,61454.0,61451.0,0.325462]
[1727877287258,0.002817,61454.0,61449.0,0.64308185]
[1727877287259,0.002817,61454.0,61452.0,0.162727]
[1727877287501,0.002817,61454.0,61453.0,0.162725]
[1727877287502,0.000817,61454.0,61453.0,0.162725]
[1727877288194,0.001817,61454.0,61452.0,0.325457]
[1727877288639,0.000817,61454.0,61453.0,0.162725]
[1727877288857,0.000817,61454.0,61453.0,0.176725]
[1727877288858,0.001817,61454.0,61453.0,0.176725]
[1727877289558,0.16454,61454.0,61453.0,0.014]
[1727877289777,0.16554,61454.0,61453.0,0.014]
[1727877292295,0.162737,61449.0,61445.0,0.24424597]
[1727877292517,0.000817,61454.0,61445.0,0.24424597]
[1727877292518,0.48819,61452.0,61445.0,0.24424597]
[1727877292740,0.16274,61448.0,61445.0,0.24424597]
[1727877292956,0.32547,61450.0,61442.0,0.325506]
[1727877293196,0.000817,61454.0,61445.0,0.28491185]
[1727877293405,0.40697197,61453.0,61448.0,0.162738]
[1727877293631,0.162735,61450.0,61445.0,0.28491185]
[1727877293886,0.162744,61446.0,61440.0,0.28491185]
[1727877294122,0.325514,61442.0,61437.0,0.24424597]
[1727877294356,0.52915782,61452.0,61423.0,0.325606]
[1727877294824,0.162784,61431.0,61423.0,0.325606]
[1727877295043,0.325532,61438.0,61424.0,0.28491185]
[1727877295271,0.162781,61432.0,61428.0,0.162789]
[1727877295505,0.023,61451.0,61425.0,0.24424597]
[1727877295506,0.24424597,61438.0,61425.0,0.24424597]
[1727877295730,0.16279,61429.0,61425.0,0.24424597]
[1727877295952,0.32557,61431.0,61425.0,0.24424597]
[1727877296173,0.24424597,61430.0,61419.0,0.0327]
[1727877296399,0.162805,61424.0,61420.0,0.24424597]
[1727877296619,0.325582,61429.0,61414.0,0.28491185]
[1727877296851,0.196,61433.0,61416.0,0.24424597]
[1727877297097,0.325607,61424.0,61416.0,0.24424597]
[1727877297314,0.24424597,61429.0,61416.0,0.24424597]
[1727877297315,0.162809,61422.0,61416.0,0.24424597]
[1727877297525,0.162805,61424.0,61416.0,0.24424597]
[1727877297738,0.24424597,61428.0,61420.0,0.002]
[1727877297952,0.162807,61423.0,61420.0,0.002]
[1727877298173,0.24424597,61428.0,61420.0,0.002]
[1727877298420,0.325542,61436.0,61419.0,0.28491185]
[1727877298421,0.162801,61425.0,61419.0,0.28491185]
[1727877298647,0.325598,61426.0,61419.0,0.28491185]
[1727877298857,0.162805,61424.0,61419.0,0.28491185]
[1727877299101,0.325585,61428.0,61419.0,0.28491185]
[1727877299314,0.24424597,61430.0,61419.0,0.28491185]
[1727877299745,0.325579,61429.0,61419.0,0.28491185]
[1727877299973,0.325614,61423.0,61419.0,0.28491185]
[1727877300196,0.162815,61420.0,61414.0,0.28491185]
[1727877300432,0.162834,61412.0,61411.0,0.001634]
[1727877301600,0.40707997,61412.0,61411.0,0.001634]
[1727877301840,0.40707997,61412.0,61398.0,0.24424597]
[1727877301841,0.16289,61391.0,61390.0,0.24424597]
[1727877302078,0.16289,61391.0,61390.0,0.26006832]
[1727877302335,0.16289,61391.0,61390.0,0.24424597]
[1727877302580,0.162898,61388.0,61387.0,0.001636]
[1727877302796,0.162886,61393.0,61389.0,0.28491185]
[1727877303027,0.325735,61400.0,61389.0,0.28491185]
[1727877303028,0.162892,61391.0,61389.0,0.28491185]
[1727877303259,0.24424597,61396.0,61387.0,0.001636]
[1727877303485,0.162894,61390.0,61387.0,0.001636]
[1727877303708,0.24424597,61396.0,61387.0,0.001636]
[1727877303709,0.325765,61394.0,61387.0,0.001636]
[1727877303931,0.325765,61394.0,61387.0,0.012636]
[1727877303932,0.001,61388.0,61387.0,0.012636]
[1727877304386,0.162892,61391.0,61387.0,0.001636]
[1727877304619,0.325774,61393.0,61387.0,0.001636]
[1727877304620,0.16288,61395.0,61390.0,0.28491185]
[1727877304874,0.24424597,61404.0,61391.0,0.00219347]
[1727877305105,0.02553815,61399.0,61390.0,0.28491185]
[1727877305355,0.02553815,61399.0,61391.0,0.00325744]
[1727877305564,0.02553815,61399.0,61392.0,0.162887]
[1727877305786,0.02553815,61399.0,61387.0,0.006636]
[1727877305787,0.24424597,61397.0,61387.0,0.006636]
[1727877306015,0.02553815,61399.0,61387.0,0.006636]
[1727877306016,0.16289,61391.0,61387.0,0.006636]
[1727877306484,0.162882,61395.0,61387.0,0.006636]
[1727877306702,0.02553815,61399.0,61387.0,0.006636]
[1727877306931,0.24424597,61397.0,61390.0,0.28491185]
[1727877307391,0.162878,61396.0,61387.0,0.012636]
[1727877307625,0.02553815,61399.0,61391.0,0.001]
[1727877307853,0.02553815,61399.0,61393.0,0.162884]
[1727877308077,0.02553815,61399.0,61391.0,0.00177254]
[1727877308078,0.162872,61398.0,61391.0,0.00177254]
[1727877308306,0.24424597,61394.0,61390.0,0.002]
[1727877308528,0.16289,61391.0,61390.0,0.002]
[1727877309462,0.325756,61396.0,61390.0,0.002]
[1727877309688,0.325756,61396.0,61387.0,0.001636]
[1727877309689,0.162877,61396.0,61388.0,0.162897]
[1727877309956,0.001,61399.0,61393.0,0.28491185]
[1727877310180,0.001,61399.0,61398.0,0.44778285]
[1727877310419,0.001,61399.0,61398.0,0.69156956]
[1727877310646,0.000817,61412.0,61410.0,0.195539]
[1727877310868,0.000817,61412.0,61410.0,0.35872571]
[1727877311100,0.000817,61412.0,61411.0,0.195537]
[1727877311319,0.000817,61412.0,61411.0,0.35872371]
[1727877311758,0.000817,61412.0,61411.0,0.79336881]
[1727877312469,0.001817,61412.0,61411.0,0.6431821]
[1727877312662,0.000817,61412.0,61411.0,0.6301821]
[1727877312907,0.000817,61412.0,61411.0,0.79336881]
[1727877313125,0.000817,61412.0,61411.0,0.6301821]
[1727877313609,0.000817,61412.0,61411.0,0.176837]
[1727877314100,0.000817,61412.0,61411.0,0.014]
[1727877314101,0.001817,61412.0,61411.0,0.014]
[1727877314347,0.000817,61412.0,61407.0,0.0327]
[1727877314585,0.000817,61412.0,61411.0,0.014]
[1727877314813,0.164651,61412.0,61411.0,0.028]
[1727877315060,0.164651,61412.0,61411.0,0.014]
[1727877315288,0.162843,61409.0,61404.0,0.24424597]
[1727877315540,0.001817,61412.0,61411.0,0.012]
[1727877315758,0.000817,61412.0,61408.0,0.325687]
[1727877315971,0.02553189,61410.0,61409.0,0.162842]
[1727877316202,0.02553189,61410.0,61405.0,0.325701]
[1727877316473,0.162858,61403.0,61393.0,0.4346451]
[1727877316708,0.162861,61402.0,61401.0,0.24424597]
[1727877316933,0.162861,61402.0,61394.0,0.57000997]
[1727877316934,0.325751,61397.0,61387.0,0.001636]
[1727877317170,0.162874,61397.0,61396.0,0.24424597]
[1727877317401,0.162874,61397.0,61389.0,0.162895]
[1727877317402,0.162881,61395.0,61389.0,0.162895]
[1727877317637,0.162881,61395.0,61394.0,0.014]
[1727877317638,0.162879,61395.0,61394.0,0.014]
[1727877318097,0.24424597,61396.0,61387.0,0.001636]
[1727877318326,0.162898,61388.0,61387.0,0.24588197]
[1727877318558,0.162898,61388.0,61387.0,0.001636]
[1727877318788,0.162895,61389.0,61387.0,0.001636]
[1727877319010,0.001,61395.0,61387.0,0.001636]
[1727877319265,0.162892,61390.0,61389.0,0.00036953]
[1727877319765,0.262892,61390.0,61389.0,0.00036953]
[1727877320424,0.35132262,61392.0,61375.0,0.162931]
[1727877320425,0.325807,61386.0,61375.0,0.162931]
[1727877320659,0.02554262,61392.0,61381.0,0.162916]
[1727877320660,0.162901,61387.0,61381.0,0.162916]
[1727877320891,0.24424597,61385.0,61376.0,0.358559]
[1727877321123,0.162912,61383.0,61377.0,0.162926]
[1727877321570,0.162914,61382.0,61376.0,0.19563]
[1727877321813,0.325828,61382.0,61375.0,0.001]
[1727877322033,0.325824,61383.0,61375.0,0.001]
[1727877322248,0.162925,61378.0,61375.0,0.001]
[1727877322460,0.162925,61378.0,61377.0,0.012]
[1727877322694,0.001,61383.0,61377.0,0.012]
[1727877322946,0.001,61383.0,61382.0,0.162914]
[1727877323177,0.001,61383.0,61378.0,0.162923]
[1727877323394,0.001,61383.0,61380.0,0.162918]
[1727877323395,0.02554409,61382.0,61380.0,0.162918]
[1727877323620,0.02554409,61382.0,61381.0,0.162916]
[1727877324065,0.02554409,61382.0,61378.0,0.358546]
[1727877324066,0.02554409,61382.0,61380.0,0.162919]
[1727877324413,0.02338107,61382.0,61381.0,0.162916]
[1727877324652,0.162893,61390.0,61384.0,0.162907]
[1727877324895,0.325781,61391.0,61382.0,0.325826]
[1727877324896,0.24424597,61386.0,61382.0,0.325826]
[1727877325150,0.24424597,61386.0,61378.0,0.4346451]
[1727877325151,0.001,61382.0,61381.0,0.172916]
[1727877325645,0.002,61382.0,61381.0,0.186916]
[1727877325866,0.001,61382.0,61381.0,0.172916]